bitfinex/quotes_SOLUSD_20250429
["timestamp","ask_amount","ask_price","bid_price","bid_amount"]
[1745949506793,0.063,149.0,148.98,21.88025922]
[1745949508303,15.23094892,149.0,148.95,26.0]
[1745949508511,15.23094892,149.0,148.96,15.16794892]
[1745949509006,15.23094892,149.0,148.96,21.88112911]
[1745949509510,0.063,149.0,148.96,21.88112911]
[1745949509800,0.063,149.0,148.97,15.16794892]
[1745949510009,0.063,149.0,148.98,15.16794892]
[1745949511996,0.063,149.0,148.98,21.88025549]
[1745949521031,0.063,149.0,148.98,15.16794892]
[1745949522329,0.063,149.0,148.98,21.88021041]
[1745949523528,0.063,149.0,148.96,0.28432314]
[1745949523529,15.23094892,149.0,148.96,0.28432314]
[1745949523693,15.23094892,149.0,148.95,47.88140182]
[1745949524318,0.063,149.0,148.96,21.88111903]
[1745949524520,0.063,149.0,148.98,15.16794892]
[1745949528011,0.063,149.0,148.98,21.88024854]
[1745949529903,0.063,149.0,148.98,6.71229962]
[1745949532011,0.063,149.0,148.95,42.78391349]
[1745949532012,0.063,149.0,148.95,26.0]
[1745949532216,15.23094892,149.0,148.96,15.16794892]
[1745949532419,0.063,149.0,148.95,26.0]
[1745949532610,0.063,149.0,148.96,15.16794892]
[1745949535134,0.063,149.0,148.96,21.88114722]
[1745949536225,0.063,149.0,148.97,15.16794892]
[1745949536435,0.063,149.0,148.98,15.16794892]
[1745949537333,0.063,149.0,148.97,15.16794892]
[1745949537925,0.063,149.0,148.96,21.88116052]
[1745949538124,0.063,149.0,148.96,15.16794892]
[1745949538324,15.23094892,149.0,148.95,15.16794892]
[1745949539238,0.063,149.0,148.95,15.16794892]
[1745949539434,15.16794892,148.99,148.95,15.16794892]
[1745949539615,16.40676414,148.99,148.95,9.69472977]
[1745949540647,16.40676414,148.99,148.96,9.69472977]
[1745949541916,16.40676414,148.99,148.94,6.99831276]
[1745949542111,16.40676414,148.99,148.95,9.69472977]
[1745949543442,16.40676414,148.99,148.92,97.5253]
[1745949543443,9.69472977,148.98,148.92,97.5253]
[1745949543641,9.69472977,148.96,148.93,0.28432314]
[1745949543841,9.69472977,148.95,148.92,0.063]
[1745949544145,9.69472977,148.94,148.92,0.063]
[1745949544319,16.40864341,148.95,148.92,0.063]
[1745949545547,21.87181921,148.95,148.92,0.063]
[1745949546539,15.15790557,148.97,148.93,15.15790557]
[1745949546744,35.25041194,148.98,148.93,15.15790557]
[1745949548018,35.25041194,148.98,148.94,15.15790557]
[1745949548343,13.38,148.98,148.95,15.15790557]
[1745949548518,13.38,148.98,148.94,15.15790557]
[1745949548720,20.09234115,148.98,148.94,15.15790557]
[1745949548932,6.71234115,148.98,148.94,15.15790557]
[1745949549136,21.87024672,148.98,148.94,15.15790557]
[1745949549448,21.87024672,148.98,148.95,5.00284181]
[1745949550348,21.87024672,148.98,148.94,15.15790557]
[1745949550845,21.87024672,148.98,148.93,15.44222871]
[1745949551016,21.87024672,148.98,148.94,5.00107993]
[1745949551844,15.15790557,148.97,148.94,5.00107993]
[1745949552048,15.15790557,148.97,148.93,22.15676443]
[1745949553749,15.15790557,148.97,148.94,4.99887094]
[1745949554743,15.15790557,148.97,148.93,22.15676443]
[1745949556245,15.15790557,148.97,148.94,4.99732311]
[1745949557545,6.71276512,148.97,148.94,4.99732311]
[1745949557930,21.87067069,148.97,148.93,22.15676443]
[1745949558252,15.15790557,148.96,148.92,0.34732314]
[1745949558558,15.15790557,148.96,148.92,15.36306714]
[1745949558747,21.87131786,148.96,148.92,0.34732314]
[1745949558922,21.87131786,148.96,148.92,15.36306714]
[1745949559121,6.71341229,148.96,148.92,15.36306714]
[1745949559325,6.71341229,148.96,148.93,4.99543679]
[1745949559734,21.87131786,148.96,148.93,4.99543679]
[1745949560453,21.87131786,148.96,148.92,15.36306714]
[1745949561357,21.87131786,148.96,148.92,0.34732314]
[1745949561647,15.15790557,148.94,148.92,0.063]
[1745949562257,15.15790557,148.93,148.92,0.063]
[1745949563765,21.87246945,148.93,148.92,0.063]
[1745949563929,40.52211831,148.93,148.92,0.063]
[1745949564558,42.06021831,148.93,148.92,0.063]
[1745949569245,8.25266388,148.93,148.92,0.063]
[1745949569447,42.69600557,148.93,148.92,0.063]
[1745949569859,49.41056945,148.93,148.92,0.063]
[1745949572343,68.06021831,148.93,148.92,0.063]
[1745949577665,40.52211831,148.93,148.92,0.063]
[1745949588373,53.88211831,148.93,148.92,0.063]
[1745949593765,48.42778108,148.93,148.92,0.063]
[1745949594369,23.06356834,148.93,148.92,0.063]
[1745949594586,32.00964886,148.93,148.92,0.063]
[1745949594890,13.36,148.93,148.92,0.063]
[1745949601392,33.80664355,148.96,148.92,15.21999469]
[1745949601603,25.36286079,148.96,148.92,15.21999469]
[1745949601900,40.51985548,148.96,148.92,15.21999469]
[1745949602101,33.80664355,148.96,148.92,15.21999469]
[1745949602296,15.15699469,148.95,148.92,0.063]
[1745949605792,25.3630117,148.96,148.92,0.063]
[1745949606019,15.15699469,148.93,148.92,0.063]
[1745949606230,33.80664355,148.93,148.92,0.063]
[1745949606727,15.15699469,148.95,148.92,0.063]
[1745949607203,15.15699469,148.94,148.92,0.063]
[1745949607411,6.71338944,148.96,148.92,0.063]
[1745949607726,15.15699469,148.94,148.92,0.063]
[1745949608524,18.64964886,148.96,148.92,0.063]
[1745949608731,15.15699469,148.95,148.92,0.063]
[1745949609932,15.15699469,148.94,148.92,0.063]
[1745949610232,18.64964886,148.96,148.92,15.21999469]
[1745949610430,13.36,148.97,148.92,15.21999469]
[1745949610613,28.51699469,148.97,148.93,15.15699469]
[1745949610817,13.36,148.97,148.93,15.15699469]
[1745949611137,28.51699469,148.97,148.92,15.50431783]
[1745949611806,28.51699469,148.97,148.92,22.21888456]
[1745949613544,13.36,148.97,148.93,15.15699469]
[1745949615408,13.36,148.97,148.94,15.15699469]
[1745949615937,28.51699469,148.97,148.93,15.15699469]
[1745949616119,13.36,148.97,148.93,15.15699469]
[1745949617337,28.51699469,148.97,148.93,15.15699469]
[1745949617527,23.0570378,148.97,148.93,9.6970378]
[1745949618833,9.6970378,148.96,148.92,10.04436094]
[1745949619028,9.6970378,148.96,148.92,16.759291]
[1745949619231,9.6970378,148.95,148.92,0.34732314]
[1745949619430,9.6970378,148.95,148.92,0.063]
[1745949619612,9.6970378,148.93,148.92,0.063]
[1745949619930,28.34668666,148.93,148.92,0.063]
[1745949621533,40.53067449,148.93,148.92,0.063]
[1745949625919,33.81611061,148.93,148.92,0.063]
[1745949626844,15.16646175,148.93,148.92,0.063]
[1745949632263,40.53067449,148.93,148.92,0.063]
[1745949632760,15.16646175,148.93,148.92,0.063]
[1745949635249,21.88102563,148.93,148.92,0.063]
[1745949635455,6.71456388,148.93,148.92,0.063]
[1745949635645,21.88102563,148.93,148.92,0.063]
[1745949639858,35.22102563,148.93,148.92,0.063]
[1745949640155,53.87067449,148.93,148.92,0.063]
[1745949645573,31.98964886,148.93,148.92,0.063]
[1745949646978,13.34,148.93,148.92,0.063]
[1745949650772,33.81611061,148.94,148.92,0.063]
[1745949650969,47.15611061,148.94,148.92,0.063]
[1745949653297,13.34,148.94,148.92,0.063]
[1745949656278,13.34,148.94,148.93,15.16646175]
[1745949656470,13.34,148.98,148.93,15.16646175]
[1745949656670,28.50646175,148.98,148.94,15.16646175]
[1745949657795,28.50646175,148.98,148.94,21.88054455]
[1745949658998,28.50646175,148.98,148.93,15.16646175]
[1745949659593,28.50646175,148.98,148.94,15.16646175]
[1745949660893,15.16646175,148.97,148.93,15.45078489]
[1745949661096,15.16646175,148.97,148.93,6.99872696]
[1745949661403,15.16646175,148.97,148.93,22.16518871]
[1745949661698,28.50646175,148.98,148.93,22.16518871]
[1745949661892,28.50646175,148.98,148.94,15.16646175]
[1745949662504,13.34,148.98,148.94,21.88051344]
[1745949662675,28.50646175,148.98,148.94,21.88051344]
[1745949663401,15.16646175,148.97,148.93,22.16514687]
[1745949664002,28.50646175,148.98,148.94,15.16646175]
[1745949664303,13.34,148.98,148.94,15.16646175]
[1745949664470,28.50646175,148.98,148.94,15.16646175]
[1745949667995,15.16646175,148.97,148.93,22.16514687]
[1745949671490,15.16646175,148.96,148.92,0.063]
[1745949671693,15.16646175,148.95,148.92,0.063]
[1745949671900,15.16646175,148.96,148.92,0.063]
[1745949672097,15.16646175,148.96,148.92,15.22946175]
[1745949673615,15.16646175,148.97,148.92,21.94442441]
[1745949673795,15.16646175,148.97,148.93,15.16646175]
[1745949674508,13.34,148.98,148.94,0.28432314]
[1745949674710,13.34,148.98,148.95,15.16646175]
[1745949675086,13.34,148.98,148.94,22.16446784]
[1745949678210,28.50646175,148.98,148.94,0.28432314]
[1745949679325,13.34,148.98,148.94,0.28432314]
[1745949679491,28.50646175,148.98,148.94,22.16482226]
[1745949679994,26.19372652,148.99,148.97,15.16646175]
[1745949680330,26.19372652,148.99,148.98,15.45078489]
[1745949680924,0.063,149.0,148.99,2.18394628]
[1745949681085,0.063,149.0,148.99,17.35040803]
[1745949681685,0.063,149.0,148.99,24.06226788]
[1745949692118,0.063,149.0,148.99,106.56226788]
[1745949696163,0.063,149.0,148.99,107.90423452]
[1745949698855,0.063,149.02,149.0,19.21829514]
[1745949699024,0.063,149.03,149.02,41.45078489]
[1745949699222,1e-08,149.04,149.03,19.07613357]
[1745949699422,0.03,149.08,149.05,26.28432314]
[1745949699625,0.03,149.08,149.05,41.45078489]
[1745949700523,0.03,149.08,149.05,26.28432314]
[1745949700745,0.03,149.08,149.05,41.45078489]
[1745949700949,0.03,149.08,149.05,48.15994289]
[1745949701143,0.03,149.08,149.05,0.14216157]
[1745949701347,0.03,149.08,149.05,15.30862332]
[1745949701530,0.03,149.08,149.05,22.15994289]
[1745949701735,0.03,149.08,149.05,48.44426603]
[1745949701953,0.03,149.08,149.05,6.99348114]
[1745949702166,15.16646175,149.07,149.03,32.70987468]
[1745949702345,15.16646175,149.07,149.04,0.14216157]
[1745949703153,15.16646175,149.07,149.04,0.28432314]
[1745949703457,15.16646175,149.07,149.04,6.99388617]
[1745949703753,15.19646175,149.08,149.04,22.16034792]
[1745949704351,0.03,149.08,149.05,15.73510803]
[1745949705257,0.03,149.08,149.05,22.44426603]
[1745949705766,0.03,149.08,149.05,22.15994289]
[1745949706050,0.03,149.08,149.03,47.87632573]
[1745949706051,15.19646175,149.08,149.03,47.87632573]
[1745949706229,15.19646175,149.08,149.04,0.28432314]
[1745949706551,0.03,149.08,149.05,15.45078489]
[1745949707150,0.03,149.08,149.05,22.15994289]
[1745949709871,0.03,149.06,149.05,0.28432314]
[1745949710040,0.03,149.06,149.03,47.87637094]
[1745949710240,0.03,149.06,149.04,0.28432314]
[1745949710633,0.03,149.06,149.03,41.16646175]
[1745949711033,0.03,149.06,149.03,47.87651105]
[1745949711574,15.19646175,149.06,149.02,102.81465757]
[1745949711762,15.16646175,149.05,149.02,89.21033443]
[1745949712072,15.16646175,149.05,149.02,82.5]
[1745949712269,15.16646175,149.05,149.02,0.28432314]
[1745949713070,15.19646175,149.06,149.02,6.99471502]
[1745949713251,15.19646175,149.06,149.02,22.16117677]
[1745949713572,0.03,149.06,149.04,15.16646175]
[1745949713755,0.03,149.06,149.03,15.16646175]
[1745949713960,15.19646175,149.06,149.02,21.87685363]
[1745949715273,15.16646175,149.05,149.01,22.16158324]
[1745949715785,15.16646175,149.04,149.01,6.99512149]
[1745949715996,15.16646175,149.05,149.01,22.16158324]
[1745949716957,15.19646175,149.06,149.02,15.16646175]
[1745949717390,15.19646175,149.06,149.02,6.7104701]
[1745949720399,15.16646175,149.05,149.01,22.16158284]
[1745949720771,15.16646175,149.05,149.01,6.99512109]
[1745949721301,15.16646175,149.03,148.99,108.5]
[1745949721599,15.16646175,149.02,148.97,6.71276095]
[1745949721800,15.16646175,149.01,148.97,21.8792227]
[1745949722179,15.16646175,149.01,148.98,0.28432314]
[1745949722799,6.73889076,149.06,149.0,0.28432314]
[1745949723008,15.16646175,149.04,149.0,0.28432314]
[1745949723182,15.16646175,149.03,149.0,0.28432314]
[1745949723911,0.03,149.06,149.02,15.59294646]
[1745949724206,0.03,149.06,149.05,41.73510803]
[1745949724499,0.03,149.06,149.05,48.44426603]
[1745949725100,1e-08,149.06,149.05,130.94426603]
[1745949725300,1e-08,149.06,149.05,150.93511585]
[1745949725507,1e-08,149.06,149.05,149.59391489]
[1745949726703,1e-08,149.06,149.05,154.59520233]
[1745949727211,1e-08,149.08,149.06,0.56864628]
[1745949727397,1e-08,149.08,149.07,15.45078489]
[1745949727784,1e-08,149.08,149.07,20.45207233]
[1745949729217,1e-08,149.08,149.07,27.16033019]
[1745949733200,1e-08,149.08,149.07,26.87600705]
[1745949733416,1e-08,149.08,149.07,27.01816862]
[1745949733596,1e-08,149.08,149.07,27.44465333]
[1745949736119,1e-08,149.08,149.07,109.94465333]
[1745949738592,1e-08,149.08,149.07,94.49386844]
[1745949738797,1e-08,149.08,149.07,109.66033019]
[1745949739805,1e-08,149.08,149.07,109.94465333]
[1745949740820,1e-08,149.09,149.08,0.14216157]
[1745949741017,15.16646175,149.17,149.12,0.28432314]
[1745949741224,16.78776175,149.16,149.12,15.45078489]
[1745949741393,1.6213,149.16,149.12,15.45078489]
[1745949741925,1.6213,149.16,149.12,20.45207233]
[1745949742619,1.6213,149.16,149.12,27.15808091]
[1745949743797,15.16646175,149.17,149.12,27.15808091]
[1745949744929,21.78106175,149.18,149.12,27.15808091]
[1745949745112,6.6146,149.18,149.12,27.15808091]
[1745949745309,15.16646175,149.17,149.12,27.15808091]
[1745949745512,15.16646175,149.16,149.12,27.15808091]
[1745949745702,15.16646175,149.16,149.12,11.99161916]
[1745949745903,15.19646175,149.15,149.12,5.00128744]
[1745949746212,15.19646175,149.15,149.12,6.70600858]
[1745949746517,0.03,149.15,149.12,6.70600858]
[1745949746720,0.03,149.15,149.12,21.87247033]
[1745949748221,15.19646175,149.15,149.12,6.70600858]
[1745949748422,15.19646175,149.15,149.11,21.87272472]
[1745949749224,15.19646175,149.15,149.11,6.70626297]
[1745949749437,15.19646175,149.15,149.11,21.87272472]
[1745949750021,15.19646175,149.15,149.11,15.16646175]
[1745949750317,15.19646175,149.15,149.07,6.70825786]
[1745949750318,15.16646175,149.12,149.07,6.70825786]
[1745949750516,15.16646175,149.11,149.07,21.87471961]
[1745949751508,15.16646175,149.11,149.07,15.16646175]
[1745949751706,15.16646175,149.1,149.06,22.01717916]
[1745949752005,15.16646175,149.1,149.06,6.70855584]
[1745949752304,15.16646175,149.09,149.05,21.87544486]
[1745949754309,15.16646175,149.08,149.04,22.16030664]
[1745949754705,15.16646175,149.08,149.04,21.8759835]
[1745949755022,15.16646175,149.07,149.04,6.70952175]
[1745949755615,15.16646175,149.07,149.03,47.87632508]
[1745949755810,15.16646175,149.04,149.01,0.063]
[1745949756002,15.16646175,149.02,149.01,0.063]
[1745949757414,15.16646175,149.03,149.01,0.063]
[1745949757615,24.22581456,149.03,149.01,0.063]
[1745949761035,6.3947,149.07,149.01,24.28881456]
[1745949761248,24.22581456,149.05,149.01,0.063]
[1745949761449,6.3947,149.07,149.01,0.063]
[1745949761450,24.22581456,149.04,149.01,0.063]
[1745949762643,24.22581456,149.04,149.01,6.77395899]
[1745949764624,24.22581456,149.03,149.01,0.063]
[1745949765019,24.22581456,149.02,149.01,0.063]
[1745949765431,25.86381456,149.02,149.01,0.063]
[1745949769047,44.51346342,149.02,149.01,0.063]
[1745949769945,51.22397207,149.02,149.01,0.063]
[1745949772537,57.37157207,149.02,149.01,0.063]
[1745949773041,50.66106342,149.02,149.01,0.063]
[1745949773948,44.51346342,149.02,149.01,0.063]
[1745949775452,51.22397207,149.02,149.01,0.063]
[1745949776849,44.51346342,149.02,149.01,0.063]
[1745949777549,35.4342262,149.02,149.01,0.063]
[1745949780141,42.14473485,149.02,149.01,0.063]
[1745949781346,35.4342262,149.02,149.01,0.063]
[1745949781550,42.14473485,149.02,149.01,0.063]
[1745949784642,15.14657734,149.02,149.01,0.063]
[1745949786952,40.50673485,149.02,149.01,0.063]
[1745949789146,33.7962262,149.02,149.01,0.063]
[1745949789336,15.14657734,149.02,149.01,0.063]
[1745949794042,40.50673485,149.02,149.01,0.063]
[1745949796558,66.50673485,149.02,149.01,0.063]
[1745949796861,44.64964886,149.0,148.99,0.063]
[1745949797167,44.64964886,148.96,148.95,0.063]
[1745949797342,88.24280354,148.96,148.95,0.063]
[1745949798946,94.95601514,148.96,148.95,0.063]
[1745949799265,73.0962262,148.96,148.95,0.063]
[1745949799762,79.8094378,148.96,148.95,0.063]
[1745949801552,73.0962262,148.96,148.95,0.063]
[1745949802578,54.44657734,148.96,148.95,0.063]
[1745949802738,79.8094378,148.96,148.95,0.063]
[1745949806067,61.15978894,148.96,148.95,0.063]
[1745949806551,79.8094378,148.96,148.95,0.063]
[1745949806875,94.95601514,148.96,148.95,0.063]
[1745949807249,79.8094378,148.96,148.95,0.063]
[1745949809156,64.66286046,148.96,148.95,0.063]
[1745949809361,79.8094378,148.96,148.95,0.063]
[1745949811078,6.71095899,149.01,148.95,0.063]
[1745949811275,6.71095899,149.01,148.95,15.20957734]
[1745949811276,33.7962262,148.99,148.95,15.20957734]
[1745949811479,15.14657734,148.99,148.95,15.20957734]
[1745949813070,15.14657734,148.99,148.95,21.92321089]
[1745949815367,15.14657734,148.96,148.95,0.063]
[1745949815576,15.14657734,148.97,148.95,0.063]
[1745949816073,15.14657734,148.98,148.95,0.063]
[1745949816278,15.14657734,148.99,148.95,15.20957734]
[1745949816666,39.3,149.0,148.96,15.14657734]
[1745949817175,54.44657734,149.0,148.96,21.85976445]
[1745949818481,28.44657734,149.0,148.96,21.85976445]
[1745949820181,13.3,149.0,148.97,15.14657734]
[1745949821384,13.3,149.0,148.98,15.14657734]
[1745949821577,41.14657734,149.03,148.98,15.14657734]
[1745949822085,41.14657734,149.03,148.99,15.14657734]
[1745949822282,41.14657734,149.03,148.99,21.85804438]
[1745949824166,15.14657734,149.02,148.99,6.71146704]
[1745949828086,41.14657734,149.03,148.99,21.85804438]
[1745949828290,54.44657734,149.04,149.0,15.14657734]
[1745949828795,39.3,149.04,149.0,15.14657734]
[1745949828984,15.14657734,149.03,148.99,21.85804438]
[1745949829295,15.14657734,149.03,148.99,15.14657734]
[1745949829988,15.14657734,149.03,148.99,21.8584117]
[1745949830299,15.14657734,149.03,148.99,15.14657734]
[1745949831891,21.85667511,149.03,148.99,15.14657734]
[1745949832279,6.71009777,149.03,148.99,15.14657734]
[1745949832480,21.85667511,149.03,148.99,15.14657734]
[1745949840493,21.85667511,149.03,148.98,6.71226865]
[1745949840700,21.85667511,149.03,148.99,15.14657734]
[1745949843695,21.85667511,149.03,148.97,6.99686479]
[1745949844013,21.85667511,149.03,148.99,15.14657734]
[1745949844206,0.03,149.05,149.02,15.14657734]
[1745949844420,0.03,149.05,149.03,15.14657734]
[1745949845322,0.03,149.05,149.04,15.14657734]
[1745949845886,0.03,149.05,149.04,21.85618549]
[1745949846498,0.03,149.05,149.04,6.70960815]
[1745949846698,0.03,149.05,149.04,21.85618549]
[1745949852224,0.03,149.05,149.02,0.28432314]
[1745949852432,15.17657734,149.05,149.0,21.85777249]
[1745949852719,15.17657734,149.05,149.01,15.14657734]
[1745949852917,0.03,149.05,149.02,15.14657734]
[1745949856923,0.03,149.05,148.99,8.40862314]
[1745949857110,0.03,149.05,149.01,15.14657734]
[1745949857507,15.14657734,149.03,148.99,22.1426144]
[1745949857717,15.14657734,149.04,149.0,15.14657734]
[1745949858402,15.17657734,149.05,149.01,15.14657734]
[1745949858730,0.03,149.05,149.02,15.14657734]
[1745949858922,0.03,149.05,149.03,15.14657734]
[1745949859423,0.03,149.05,149.03,21.8565228]
[1745949859631,0.03,149.05,149.03,15.14657734]
[1745949861224,0.03,149.05,149.02,15.14657734]
[1745949863528,0.03,149.05,149.02,21.85692247]
[1745949865731,0.03,149.05,149.02,15.14657734]
[1745949866035,15.17657734,149.05,149.01,21.85733123]
[1745949867033,0.03,149.05,149.01,21.85733123]
[1745949867821,0.03,149.05,149.02,15.14657734]
[1745949869110,0.03,149.05,149.01,15.43090048]
[1745949869558,0.03,149.05,149.02,15.14657734]
[1745949870134,15.17657734,149.05,149.01,15.14657734]
[1745949870319,15.14657734,149.04,148.99,15.43090048]
[1745949870520,15.14657734,149.02,148.98,15.14657734]
[1745949870720,15.14657734,149.0,148.97,89.21272859]
[1745949871043,15.14657734,149.0,148.96,21.85963201]
[1745949873744,15.14657734,149.01,148.97,15.14657734]
[1745949874242,15.14657734,149.01,148.96,6.71305467]
[1745949874415,45.99027749,149.03,148.98,15.14657734]
[1745949874615,13.28,149.03,149.01,15.14657734]
[1745949875037,15.17657734,149.05,149.01,15.14657734]
[1745949875226,15.14657734,149.02,148.97,6.71270071]
[1745949875435,15.14657734,149.0,148.95,15.35173891]
[1745949875638,15.14657734,148.99,148.95,15.35173891]
[1745949876038,15.14657734,149.0,148.95,15.20957734]
[1745949876740,15.14657734,149.0,148.95,21.92293291]
[1745949877249,15.14657734,149.0,148.96,15.14657734]
[1745949877449,15.14657734,149.01,148.96,15.14657734]
[1745949878451,15.14657734,149.01,148.97,6.71276095]
[1745949878627,15.14657734,149.01,148.97,21.85933829]
[1745949879041,15.14657734,149.01,148.97,6.71276095]
[1745949879561,15.14657734,149.0,148.97,6.71276095]
[1745949880081,15.14657734,149.0,148.96,6.71300528]
[1745949880232,15.14657734,148.99,148.95,21.92313923]
[1745949881946,15.14657734,148.99,148.95,15.20957734]
[1745949882256,15.14657734,148.99,148.95,21.92315259]
[1745949882637,15.14657734,149.0,148.95,21.92315259]
[1745949883059,15.14657734,149.0,148.96,15.14657734]
[1745949884265,15.14657734,149.0,148.96,21.85969329]
[1745949885569,15.14657734,149.01,148.97,15.14657734]
[1745949886964,15.14657734,149.01,148.97,21.85920981]
[1745949891073,15.14657734,149.0,148.97,6.71263247]
[1745949891280,15.14657734,149.0,148.96,6.71314078]
[1745949891657,15.14657734,149.0,148.96,21.85971812]
[1745949892372,15.14657734,149.01,148.97,15.14657734]
[1745949894875,15.14657734,149.01,148.97,21.85921556]
[1745949901178,15.14657734,149.01,148.95,6.7766623]
[1745949901477,15.14657734,149.01,148.96,15.43090048]
[1745949902393,15.14657734,148.99,148.95,21.92305326]
[1745949902884,15.14657734,149.0,148.96,15.14657734]
[1745949903061,15.14657734,149.01,148.96,15.14657734]
[1745949903265,13.28,149.02,148.96,15.14657734]
[1745949903470,15.14657734,149.01,148.96,15.14657734]
[1745949904390,15.14657734,149.01,148.97,6.71276095]
[1745949904699,13.28,149.02,148.98,15.14657734]
[1745949904990,13.28,149.02,148.96,16.78302188]
[1745949904991,15.14657734,149.01,148.96,21.85957446]
[1745949905494,28.42657734,149.02,148.97,15.14657734]
[1745949906623,28.42657734,149.02,148.97,21.85920758]
[1745949906795,35.13711063,149.02,148.97,21.85920758]
[1745949906992,15.14657734,149.01,148.97,21.85920758]
[1745949908207,35.13711063,149.02,148.97,21.85920758]
[1745949908403,28.42657734,149.02,148.97,21.85920758]
[1745949908609,0.03,149.05,149.01,15.14657734]
[1745949909094,15.17657734,149.05,149.01,15.14657734]
[1745949909687,0.03,149.05,149.01,15.14657734]
[1745949910122,0.03,149.05,149.02,15.14657734]
[1745949910298,0.03,149.05,149.02,21.85697829]
[1745949915408,0.03,149.05,149.02,6.71040095]
[1745949916224,0.03,149.05,149.02,15.14657734]
[1745949916824,0.03,149.05,149.01,15.14657734]
[1745949918221,0.03,149.05,149.02,6.71050865]
[1745949918525,0.03,149.05,148.98,17.06499839]
[1745949918526,15.17657734,149.05,148.98,17.06499839]
[1745949918714,15.17657734,149.05,149.01,15.14657734]
[1745949920229,15.17657734,149.05,149.01,21.85729986]
[1745949921826,15.14657734,149.02,148.96,26.0]
[1745949922034,15.14657734,149.0,148.96,47.85968987]
[1745949922222,15.14657734,149.0,148.96,32.71311253]
[1745949922426,15.14657734,148.99,148.95,21.9230632]
[1745949923222,15.14657734,149.0,148.95,21.9230632]
[1745949923527,15.14657734,149.0,148.96,21.85945045]
[1745949924233,15.14657734,149.01,148.97,15.14657734]
[1745949925237,6.71050865,149.02,148.98,15.14657734]
[1745949925238,15.14657734,149.02,148.98,15.14657734]
[1745949925833,15.14657734,149.02,148.98,21.85886651]
[1745949927637,15.14657734,149.02,148.98,15.14657734]
[1745949927838,15.14657734,149.0,148.96,15.14657734]
[1745949928042,15.14657734,149.01,148.96,15.14657734]
[1745949928219,15.14657734,149.0,148.96,15.14657734]
[1745949928420,15.14657734,149.0,148.95,0.34732314]
[1745949928635,15.14657734,149.0,148.96,15.14657734]
[1745949928844,15.14657734,148.97,148.95,0.063]
[1745949929239,13.28,148.98,148.95,0.063]
[1745949929240,15.14657734,148.96,148.95,0.063]
[1745949931050,21.85978894,148.96,148.95,0.063]
[1745949932634,15.14657734,148.96,148.95,0.063]
[1745949934145,21.85978894,148.96,148.95,0.063]
[1745949934444,15.14657734,148.96,148.95,0.063]
[1745949935050,21.8594984,148.97,148.95,0.063]
[1745949935446,13.28,148.98,148.95,0.063]
[1745949935850,28.42657734,148.98,148.95,0.063]
[1745949936033,15.14657734,148.97,148.95,0.063]
[1745949937147,28.42657734,148.98,148.95,0.063]
[1745949938335,15.14657734,148.97,148.95,0.063]
[1745949938544,15.14657734,148.96,148.95,0.063]
[1745949939150,15.14657734,148.97,148.95,0.063]
[1745949939932,28.42657734,148.98,148.95,0.063]
[1745949940254,35.1389449,148.98,148.95,0.063]
[1745949941066,28.42657734,148.98,148.95,0.063]
[1745949941353,13.28,148.98,148.96,15.14657734]
[1745949941531,13.28,148.98,148.97,15.14657734]
[1745949941730,20.25384886,149.03,148.97,15.14657734]
[1745949941731,28.42657734,149.02,148.97,15.14657734]
[1745949941953,28.42657734,149.02,148.98,15.14657734]
[1745949942256,28.42657734,149.02,148.97,15.14657734]
[1745949942852,35.1370871,149.02,148.97,21.85914597]
[1745949943158,35.1370871,149.02,148.97,6.71256863]
[1745949943357,15.14657734,149.01,148.97,21.85914597]
[1745949943564,28.42657734,149.02,148.97,21.85914597]
[1745949946465,35.13715021,149.02,148.97,21.85914597]
[1745949947568,13.28,149.02,149.0,15.14657734]
[1745949948566,13.28,149.02,149.01,15.14657734]
[1745949948776,0.03,149.05,149.01,15.14657734]
[1745949949068,0.03,149.05,149.02,15.14657734]
[1745949950643,15.17657734,149.05,149.01,21.85735058]
[1745949951762,15.17657734,149.05,149.01,15.14657734]
[1745949953882,15.17657734,149.05,149.02,15.14657734]
[1745949953883,0.03,149.05,149.02,15.14657734]
[1745949954174,0.03,149.05,149.04,15.14657734]
[1745949956077,0.03,149.05,149.04,21.85618549]
[1745949960986,15.17657734,149.05,148.99,1.5099]
[1745949961289,15.14657734,149.03,148.99,15.14657734]
[1745949961465,15.14657734,149.04,149.0,15.14657734]